bitfinex/quotes_BTCUSD_20241023
["timestamp","ask_amount","ask_price","bid_price","bid_amount"]
[1729712047617,0.2574388,66187.0,66186.0,0.005]
[1729712047827,0.4085258,66187.0,66186.0,0.005]
[1729712048047,0.2574388,66187.0,66186.0,0.005]
[1729712048262,0.151087,66187.0,66186.0,0.005]
[1729712049451,0.150477,66187.0,66186.0,0.005]
[1729712049657,0.31766293,66187.0,66186.0,0.005]
[1729712050700,0.150477,66187.0,66186.0,0.005]
[1729712050906,0.11404945,66188.0,66186.0,0.005]
[1729712051118,0.151087,66187.0,66186.0,0.005]
[1729712051350,0.11404945,66188.0,66187.0,0.161087]
[1729712051563,0.11404945,66188.0,66187.0,0.57362088]
[1729712051776,0.11404945,66188.0,66187.0,0.57559951]
[1729712051987,0.000823,66188.0,66187.0,0.57559951]
[1729712052195,0.000823,66188.0,66187.0,0.58032529]
[1729712055303,0.000823,66188.0,66187.0,0.57559951]
[1729712055918,0.000823,66188.0,66187.0,0.243287]
[1729712057623,0.000823,66188.0,66187.0,0.39379081]
[1729712057867,0.000823,66188.0,66187.0,0.39879081]
[1729712058088,0.000823,66188.0,66187.0,0.69031603]
[1729712058298,0.000823,66188.0,66187.0,0.70031603]
[1729712058505,0.000823,66188.0,66187.0,0.73535907]
[1729712059185,0.000823,66188.0,66187.0,0.72535907]
[1729712059419,0.000823,66188.0,66187.0,0.73035907]
[1729712060068,0.000823,66188.0,66187.0,0.72063385]
[1729712060319,0.000823,66188.0,66187.0,0.70763385]
[1729712062071,0.000823,66188.0,66187.0,0.54383385]
[1729712062979,0.000823,66188.0,66187.0,0.53883385]
[1729712063211,0.000823,66188.0,66187.0,0.52883385]
[1729712063450,0.000823,66188.0,66187.0,0.53883385]
[1729712063881,0.000823,66188.0,66187.0,0.53383385]
[1729712064099,0.000823,66188.0,66187.0,0.53883385]
[1729712064316,0.000823,66188.0,66187.0,0.54383385]
[1729712064998,0.000823,66188.0,66187.0,0.57155893]
[1729712065208,0.000823,66188.0,66187.0,0.56683385]
[1729712069540,0.000823,66188.0,66187.0,0.57155893]
[1729712070292,0.000823,66188.0,66187.0,0.57320493]
[1729712071460,0.000823,66188.0,66187.0,0.74852572]
[1729712078721,0.000823,66188.0,66187.0,0.90732572]
[1729712078956,0.22677622,66204.0,66203.0,0.29905]
[1729712079169,0.22677622,66204.0,66203.0,0.55587079]
[1729712079408,0.22677622,66204.0,66203.0,0.56059587]
[1729712079618,0.22677622,66219.0,66210.0,0.161034]
[1729712079835,0.22677622,66219.0,66210.0,0.33635479]
[1729712080288,0.22677622,66219.0,66211.0,0.151032]
[1729712080498,0.22677622,66219.0,66211.0,0.30153581]
[1729712081637,0.22677622,66219.0,66211.0,0.30653581]
[1729712081855,0.22677622,66219.0,66211.0,0.01]
[1729712081856,0.302049,66215.0,66211.0,0.01]
[1729712082077,0.151874,66217.0,66211.0,0.01]
[1729712082748,0.151023,66215.0,66211.0,0.01]
[1729712082961,0.000856,66217.0,66211.0,0.01]
[1729712083173,0.000856,66217.0,66211.0,0.161032]
[1729712083385,0.000856,66217.0,66211.0,0.237551]
[1729712083600,0.000856,66217.0,66211.0,0.086519]
[1729712083877,0.15102,66216.0,66211.0,0.086519]
[1729712084086,0.000856,66217.0,66211.0,0.237551]
[1729712084773,0.167756,66213.0,66211.0,0.01]
[1729712085026,0.249456,66213.0,66211.0,0.01]
[1729712085260,0.000856,66217.0,66216.0,0.29902]
[1729712085473,0.22677622,66236.0,66228.0,0.165993]
[1729712085474,0.22677622,66229.0,66228.0,0.165993]
[1729712085695,0.22677622,66229.0,66228.0,0.31149681]
[1729712086150,0.22677622,66229.0,66228.0,0.01]
[1729712086378,0.150986,66231.0,66230.0,0.005]
[1729712086599,0.150986,66231.0,66230.0,0.01]
[1729712086816,0.301972,66232.0,66231.0,0.005]
[1729712086817,0.150985,66232.0,66231.0,0.005]
[1729712088630,0.301959,66235.0,66231.0,0.005]
[1729712088848,0.301936,66239.0,66231.0,0.01]
[1729712089070,0.150981,66234.0,66231.0,0.01]
[1729712089500,0.150983,66233.0,66231.0,0.01]
[1729712089722,0.17532079,66241.0,66228.0,0.150991]
[1729712089723,0.52955022,66243.0,66238.0,0.005]
[1729712089940,0.150968,66239.0,66238.0,0.005]
[1729712090163,0.2486,66240.0,66238.0,0.005]
[1729712090814,0.399566,66240.0,66238.0,0.005]
[1729712091476,0.2486,66240.0,66238.0,0.15597]
[1729712091706,0.2486,66240.0,66238.0,0.005]
[1729712092799,0.399567,66240.0,66238.0,0.005]
[1729712093014,0.2486,66240.0,66238.0,0.005]
[1729712093243,0.399566,66240.0,66238.0,0.005]
[1729712093697,0.400389,66240.0,66238.0,0.005]
[1729712096133,0.249423,66240.0,66238.0,0.005]
[1729712096342,0.400389,66240.0,66238.0,0.0512938]
[1729712096566,0.167723,66240.0,66238.0,0.005]
[1729712097469,0.150968,66239.0,66238.0,0.005]
[1729712100317,0.167723,66240.0,66238.0,0.005]
[1729712100529,0.150968,66239.0,66238.0,0.005]
[1729712101206,0.167723,66240.0,66238.0,0.005]
[1729712101640,0.318689,66240.0,66238.0,0.005]
[1729712101864,0.151789,66240.0,66238.0,0.005]
[1729712102121,0.150968,66239.0,66238.0,0.005]
[1729712102767,0.000823,66240.0,66238.0,0.005]
[1729712103016,0.000823,66240.0,66239.0,0.005]
[1729712104900,0.000823,66240.0,66239.0,0.18032079]
[1729712105119,0.000823,66240.0,66239.0,0.33628879]
[1729712105120,0.00064124,66240.0,66239.0,0.33628879]
[1729712106280,0.00064124,66240.0,66239.0,0.160968]
[1729712107408,0.00064124,66240.0,66239.0,0.31449089]
[1729712107625,0.00064124,66240.0,66239.0,0.31147181]
[1729712110525,0.00064124,66240.0,66239.0,0.31647181]
[1729712110745,0.00064124,66240.0,66239.0,0.34419339]
[1729712113262,0.00064124,66240.0,66239.0,0.34419336]
[1729712114609,0.00064124,66240.0,66239.0,0.31619336]
[1729712118310,0.00064124,66240.0,66239.0,0.31147181]
[1729712118535,0.00064124,66240.0,66239.0,0.31619365]
[1729712118744,0.00064124,66240.0,66239.0,0.31719365]
[1729712119180,0.00064124,66240.0,66239.0,0.34047181]
[1729712119417,0.00064124,66240.0,66239.0,0.34519369]
[1729712120311,0.00064124,66240.0,66239.0,0.44519369]
[1729712123599,0.00064124,66240.0,66239.0,0.44519324]
[1729712125105,0.00064124,66240.0,66239.0,0.63051403]
[1729712125319,0.00064124,66240.0,66239.0,0.764001]
[1729712125988,0.00064124,66240.0,66239.0,2.969058]
[1729712126694,0.000856,66250.0,66249.0,0.015]
[1729712126922,0.000856,66250.0,66249.0,0.69819103]
[1729712128451,0.000856,66250.0,66249.0,0.6944696]
[1729712128637,0.000856,66250.0,66249.0,0.69919012]
[1729712129165,0.000856,66250.0,66249.0,0.6944696]
[1729712129835,0.000856,66250.0,66249.0,0.69919012]
[1729712130736,0.000856,66250.0,66249.0,0.62049012]
[1729712131671,0.000856,66250.0,66249.0,0.61949012]
[1729712131927,0.000856,66250.0,66249.0,0.62049012]
[1729712135156,0.000856,66250.0,66249.0,0.62652612]
[1729712135376,0.000856,66250.0,66249.0,0.62652649]
[1729712136505,0.000856,66250.0,66249.0,0.62652644]
[1729712139985,0.000856,66250.0,66249.0,0.011]
[1729712140220,0.168056,66250.0,66249.0,0.011]
[1729712140671,0.168056,66250.0,66249.0,0.160945]
[1729712140888,0.000856,66250.0,66249.0,0.31144881]
[1729712141120,0.000856,66250.0,66249.0,0.31244881]
[1729712141346,0.000856,66250.0,66249.0,0.31144881]
[1729712141828,0.000856,66250.0,66249.0,0.31244881]
[1729712144061,0.000856,66250.0,66249.0,0.31716987]
[1729712144271,0.000856,66250.0,66249.0,0.31244881]
[1729712145433,0.000856,66250.0,66249.0,0.31716987]
[1729712145880,0.000856,66250.0,66249.0,0.34044881]
[1729712146103,0.000856,66250.0,66249.0,0.34516976]
[1729712146759,0.000856,66250.0,66249.0,0.44516976]
[1729712146982,0.000856,66250.0,66249.0,0.44416976]
[1729712147453,0.000856,66250.0,66249.0,0.44516976]
[1729712149421,0.000856,66250.0,66249.0,0.44044881]
[1729712149627,0.000856,66250.0,66249.0,0.44516968]
[1729712152294,0.000856,66250.0,66249.0,0.41716968]
[1729712153152,0.000856,66250.0,66249.0,0.41616968]
[1729712153575,0.000856,66250.0,66249.0,0.41716968]
[1729712153783,0.000856,66250.0,66249.0,0.41616968]
[1729712154205,0.000856,66250.0,66249.0,0.41716968]
[1729712154418,0.000856,66250.0,66249.0,0.11572087]
[1729712154630,0.000856,66250.0,66249.0,0.16666587]
[1729712155050,0.000856,66250.0,66249.0,0.16566587]
[1729712155259,0.077356,66250.0,66249.0,0.160945]
[1729712156332,0.077356,66250.0,66249.0,0.161945]
[1729712156770,0.077356,66250.0,66249.0,0.01]
[1729712156998,0.077356,66250.0,66249.0,0.011]
[1729712157219,0.077356,66250.0,66249.0,0.161945]
[1729712157487,0.077356,66250.0,66249.0,0.011]
[1729712157726,0.077356,66250.0,66249.0,0.056386]
[1729712158180,0.077356,66250.0,66249.0,0.057386]
[1729712158391,0.077356,66250.0,66249.0,0.056386]
[1729712159467,0.000856,66250.0,66249.0,0.056386]
[1729712159679,0.000856,66250.0,66249.0,0.057386]
[1729712160105,0.000856,66250.0,66249.0,0.35883481]
[1729712160999,0.000856,66250.0,66249.0,0.36355603]
[1729712162077,0.000856,66250.0,66249.0,0.49155603]
[1729712162305,0.000856,66250.0,66249.0,0.48683481]
[1729712162556,0.000856,66250.0,66249.0,0.49155579]
[1729712163417,0.000856,66250.0,66249.0,0.48655579]
[1729712163625,0.000856,66250.0,66249.0,0.46355579]
[1729712163843,0.000856,66250.0,66249.0,0.46855579]
[1729712164059,0.000856,66250.0,66249.0,0.32216979]
[1729712165356,0.000856,66250.0,66249.0,0.01572098]
[1729712165802,0.151799,66250.0,66249.0,0.006]
[1729712166022,0.000856,66250.0,66249.0,0.006]
[1729712166244,0.000856,66250.0,66249.0,0.011]
[1729712166487,0.000856,66250.0,66249.0,0.01]
[1729712166929,0.000856,66250.0,66249.0,0.006]
[1729712167143,0.000856,66250.0,66249.0,0.01]
[1729712167570,0.000856,66250.0,66249.0,0.006]
[1729712168498,0.000856,66250.0,66249.0,0.011]
[1729712168711,0.000856,66250.0,66249.0,0.006]
[1729712168916,0.000856,66250.0,66249.0,0.005]
[1729712169134,0.000856,66250.0,66249.0,0.01]
[1729712169346,0.000856,66250.0,66249.0,0.011]
[1729712169585,0.000856,66250.0,66249.0,0.01]
[1729712169805,0.000856,66250.0,66249.0,0.011]
[1729712170224,0.000856,66250.0,66249.0,0.01]
[1729712170426,0.000856,66250.0,66249.0,0.011]
[1729712170854,0.000856,66250.0,66249.0,0.006]
[1729712171075,0.000856,66250.0,66249.0,0.011]
[1729712171293,0.000856,66250.0,66249.0,0.006]
[1729712171505,0.000856,66250.0,66249.0,0.011]
[1729712172130,0.000856,66250.0,66249.0,0.01]
[1729712172577,0.000856,66250.0,66249.0,0.011]
[1729712173931,0.151799,66250.0,66249.0,0.006]
[1729712174194,0.000856,66250.0,66249.0,0.006]
[1729712174686,0.151799,66250.0,66249.0,0.006]
[1729712174926,0.000856,66250.0,66249.0,0.006]
[1729712176920,0.000856,66250.0,66249.0,0.00604]
[1729712178622,0.151799,66250.0,66249.0,0.00604]
[1729712178845,0.151799,66250.0,66249.0,0.00104]
[1729712178846,0.44510607,66250.0,66249.0,0.00104]
[1729712179065,0.32711979,66250.0,66249.0,0.00104]
[1729712179281,0.32211979,66250.0,66249.0,0.00104]
[1729712179923,0.163324,66251.0,66249.0,0.00104]
[1729712179924,0.163324,66251.0,66250.0,0.005]
[1729712181304,0.000824,66251.0,66250.0,0.005]
[1729712181719,0.000824,66251.0,66250.0,0.006]
[1729712181942,0.000824,66251.0,66250.0,0.0508887]
[1729712182379,0.000824,66251.0,66250.0,0.0518887]
[1729712182612,0.000824,66251.0,66250.0,0.0508887]
[1729712182824,0.000824,66251.0,66250.0,0.005]
[1729712183043,0.000824,66251.0,66250.0,0.006]
[1729712184952,0.000824,66251.0,66250.0,0.16150381]
[1729712185175,0.000824,66251.0,66250.0,0.31716797]
[1729712185318,0.000824,66251.0,66250.0,0.39866797]
[1729712187167,0.000824,66251.0,66250.0,0.69386797]
[1729712187386,0.000824,66251.0,66250.0,0.91659239]
[1729712187601,0.000824,66251.0,66250.0,0.87118876]
[1729712188270,0.000824,66251.0,66250.0,0.87018876]
[1729712188683,0.000824,66251.0,66250.0,0.87118876]
[1729712188892,0.000824,66251.0,66250.0,0.87018876]
[1729712189104,0.000824,66251.0,66250.0,1.65384976]
[1729712189306,0.000824,66251.0,66250.0,1.65484976]
[1729712189529,0.000672,66251.0,66250.0,1.65484976]
[1729712189943,0.000672,66251.0,66250.0,1.43425897]
[1729712190164,0.000672,66251.0,66250.0,0.6782676]
[1729712190371,0.000672,66251.0,66250.0,0.68298768]
[1729712190577,0.000672,66251.0,66250.0,0.6782676]
[1729712190793,0.000672,66251.0,66250.0,0.68298797]
[1729712191456,0.000672,66251.0,66250.0,0.70698797]
[1729712191675,0.000672,66251.0,66250.0,0.70598797]
[1729712192101,0.000672,66251.0,66250.0,0.42116718]
[1729712192311,0.000672,66251.0,66250.0,0.41616718]
[1729712192518,0.000672,66251.0,66250.0,0.41716718]
[1729712192727,0.000672,66251.0,66250.0,0.43116718]
[1729712193135,0.000672,66251.0,66250.0,0.43216718]
[1729712193789,0.000672,66251.0,66250.0,0.60748797]
[1729712194407,0.000672,66251.0,66250.0,0.62948797]
[1729712194611,0.000672,66251.0,66250.0,0.63048797]
[1729712195052,0.000672,66251.0,66250.0,0.62948797]
[1729712195259,0.000672,66251.0,66250.0,0.63048797]
[1729712195464,0.000672,66251.0,66250.0,0.43216718]
[1729712196824,0.000672,66251.0,66250.0,0.60748797]
[1729712197677,0.000672,66251.0,66250.0,0.6027676]
[1729712197931,0.000672,66251.0,66250.0,0.61352418]
[1729712199322,0.000672,66251.0,66250.0,0.63652418]
[1729712199778,0.000672,66251.0,66250.0,0.46120339]
[1729712200013,0.000672,66251.0,66250.0,0.43820339]
[1729712200230,0.000672,66251.0,66250.0,0.43320339]
[1729712200446,0.000672,66251.0,66250.0,0.43820339]
[1729712200668,0.000672,66251.0,66250.0,0.42820339]
[1729712201138,0.000672,66251.0,66250.0,0.43720339]
[1729712201387,0.000672,66251.0,66250.0,0.43820339]
[1729712201618,0.000672,66251.0,66250.0,0.43720339]
[1729712201840,0.000672,66251.0,66250.0,0.43820339]
[1729712202305,0.000672,66251.0,66250.0,0.43720339]
[1729712202531,0.000672,66251.0,66250.0,0.50598463]
[1729712202757,0.000672,66251.0,66250.0,0.50663063]
[1729712203197,0.000672,66251.0,66250.0,0.50658293]
[1729712203413,0.000672,66251.0,66250.0,0.46184939]
[1729712203947,0.000672,66251.0,66250.0,0.53834939]
[1729712204185,0.000672,66251.0,66250.0,0.53934939]
[1729712204439,0.000672,66251.0,66250.0,0.53834939]
[1729712204658,0.000672,66251.0,66250.0,0.53934933]
[1729712207403,0.000672,66251.0,66250.0,0.46284933]
[1729712208274,0.000672,66251.0,66250.0,0.46284951]
[1729712208489,0.000672,66251.0,66250.0,0.46184951]
[1729712208960,0.000672,66251.0,66250.0,0.46284951]
[1729712210500,0.000672,66251.0,66250.0,0.46184951]
[1729712210726,0.000672,66251.0,66250.0,0.46284951]
[1729712212717,0.000672,66251.0,66250.0,0.42984951]
[1729712212907,0.000672,66251.0,66250.0,0.42484951]
[1729712213325,0.000672,66251.0,66250.0,0.42381351]
[1729712213762,0.000672,66251.0,66250.0,0.41881351]
[1729712214018,0.000672,66251.0,66250.0,0.41281351]
[1729712214193,0.000672,66251.0,66250.0,0.2673097]
[1729712214415,0.000672,66251.0,66250.0,0.2683097]
[1729712214640,0.000672,66251.0,66250.0,0.1673097]
[1729712214872,0.000672,66251.0,66250.0,0.011646]
[1729712215105,0.000672,66251.0,66250.0,0.007646]
[1729712215377,0.000672,66251.0,66250.0,0.006646]
[1729712215624,0.000672,66251.0,66250.0,0.007646]
[1729712215872,0.000672,66251.0,66250.0,0.006646]
[1729712216614,0.000672,66251.0,66250.0,0.157589]
[1729712216827,0.000672,66251.0,66250.0,0.083289]
[1729712217785,0.000672,66251.0,66250.0,0.084289]
[1729712220386,0.000672,66251.0,66250.0,0.002646]
[1729712221181,0.151613,66251.0,66250.0,0.002646]
[1729712221438,0.403313,66251.0,66250.0,0.002646]
[1729712222626,0.403313,66251.0,66250.0,0.001646]
[1729712222882,0.403313,66251.0,66250.0,0.002646]
[1729712223118,0.403313,66251.0,66250.0,0.001646]
[1729712223596,0.403313,66251.0,66250.0,0.002646]
[1729712224834,0.403313,66251.0,66250.0,0.001646]
[1729712225336,0.403313,66251.0,66250.0,0.002646]
[1729712225580,0.252372,66251.0,66250.0,0.001646]
[1729712225810,0.252372,66251.0,66250.0,0.002646]
[1729712226054,0.403313,66251.0,66250.0,0.002646]
[1729712226834,0.5445707,66251.0,66250.0,0.002646]
[1729712227065,0.70707451,66251.0,66250.0,0.002646]
[1729712227305,0.56447779,66244.0,66243.0,0.001646]
[1729712227554,0.7129816,66244.0,66243.0,0.001646]
[1729712228044,0.387157,66244.0,66243.0,0.001646]
[1729712228276,0.2362,66244.0,66243.0,0.001646]
[1729712228538,0.1558,66244.0,66243.0,0.001646]
[1729712229030,0.1558,66244.0,66243.0,0.006646]
[1729712229282,0.0804,66250.0,66243.0,0.006646]
[1729712229527,0.0804,66250.0,66245.0,0.005]
[1729712230226,0.231344,66250.0,66245.0,0.005]
[1729712230453,0.0804,66250.0,66245.0,0.005]
[1729712230721,0.0804,66250.0,66243.0,0.002646]
[1729712230722,0.000672,66251.0,66247.0,0.005]
[1729712232461,0.000672,66251.0,66247.0,0.006]
[1729712232696,0.151613,66251.0,66247.0,0.006]
[1729712233226,0.000672,66251.0,66247.0,0.006]
[1729712233468,0.150947,66248.0,66247.0,0.001]
[1729712233940,0.000672,66251.0,66247.0,0.006]
[1729712234398,0.151613,66251.0,66247.0,0.006]
[1729712234634,0.151613,66251.0,66247.0,0.005]
[1729712234864,0.151613,66251.0,66247.0,0.006]
[1729712235099,0.151613,66251.0,66247.0,0.005]
[1729712235584,0.151613,66251.0,66247.0,0.006]
[1729712236540,0.150944,66250.0,66247.0,0.006]
[1729712236788,0.000672,66251.0,66247.0,0.006]
[1729712238223,0.150943,66250.0,66247.0,0.006]
[1729712238459,0.000672,66251.0,66247.0,0.006]
[1729712238685,0.151613,66251.0,66247.0,0.006]
[1729712239143,0.000672,66251.0,66247.0,0.006]
[1729712239423,0.150947,66248.0,66247.0,0.006]
[1729712239653,0.150947,66248.0,66247.0,0.007646]
[1729712239890,0.150947,66248.0,66247.0,0.002646]
[1729712240117,0.302558,66251.0,66247.0,0.002646]
[1729712240353,0.150947,66249.0,66247.0,0.002646]
[1729712240609,0.000672,66251.0,66247.0,0.002646]
[1729712240828,0.150947,66248.0,66247.0,0.002646]
[1729712241071,0.150945,66250.0,66247.0,0.002646]
[1729712241282,0.150945,66250.0,66247.0,0.001646]
[1729712241493,0.150943,66250.0,66247.0,0.002646]
[1729712242156,0.000672,66251.0,66247.0,0.002646]
[1729712242405,0.000672,66251.0,66250.0,0.23177622]
[1729712242621,0.000672,66251.0,66250.0,0.1973173]
[1729712243502,0.000672,66251.0,66250.0,0.35583983]
[1729712243726,0.000672,66251.0,66250.0,0.35282111]
[1729712245398,0.000672,66251.0,66250.0,0.35382111]
[1729712245871,0.000672,66251.0,66250.0,0.35282111]
[1729712246090,0.000672,66251.0,66250.0,0.35382111]
[1729712246532,0.000672,66251.0,66250.0,0.45882111]
[1729712246762,0.000672,66251.0,66250.0,0.63022111]
[1729712247222,0.000672,66251.0,66250.0,0.63494222]
[1729712247476,0.000672,66251.0,66250.0,0.63022111]
[1729712247704,0.000672,66251.0,66250.0,0.71054222]
[1729712247934,0.000672,66251.0,66250.0,0.71954222]
[1729712248396,0.000672,66251.0,66250.0,0.74354222]
[1729712248617,0.000672,66251.0,66250.0,0.74254222]
[1729712248879,0.000672,66251.0,66250.0,0.74354222]
[1729712249103,0.000672,66251.0,66250.0,0.74254222]
[1729712249328,0.000672,66251.0,66250.0,0.91786301]
[1729712249596,0.000856,66255.0,66254.0,0.64957558]
[1729712249825,0.0802,66289.0,66258.0,0.025]
[1729712250054,0.0802,66289.0,66258.0,1.0525883]
[1729712250055,0.301713,66288.0,66258.0,1.0525883]
[1729712250294,0.15086,66287.0,66258.0,1.0562906]
[1729712250535,0.22677622,66285.0,66258.0,1.0562906]
[1729712250760,0.22677622,66285.0,66258.0,1.0542906]
[1729712250968,0.22677622,66285.0,66258.0,1.0956649]
[1729712251419,0.22677622,66285.0,66270.0,0.165897]
[1729712251637,0.22677622,66285.0,66270.0,0.8412216]
[1729712252102,0.22677622,66285.0,66273.0,0.165891]
[1729712252313,0.22677622,66285.0,66273.0,0.31639481]
[1729712252522,0.22677622,66285.0,66273.0,0.38757164]
[1729712254566,0.22677622,66285.0,66273.0,0.56289243]
[1729712254834,0.22677622,66285.0,66273.0,0.66389243]
[1729712255068,0.22677622,66292.0,66273.0,0.86221322]
[1729712255299,0.22677622,66284.0,66273.0,0.95041322]
[1729712255550,0.22677622,66284.0,66273.0,0.77509243]
[1729712255778,0.22677622,66284.0,66273.0,0.77409243]
[1729712256727,0.22677622,66284.0,66273.0,1.12643171]
[1729712257190,0.22677622,66284.0,66273.0,0.95111092]
[1729712257961,0.22677622,66292.0,66273.0,1.12543171]
[1729712258207,0.22677622,66292.0,66273.0,1.12643171]
[1729712258430,0.22677622,66292.0,66278.0,0.025]
[1729712258642,0.22677622,66292.0,66278.0,0.87822439]
[1729712258857,0.22677622,66292.0,66278.0,0.88294288]
[1729712259782,0.22677622,66292.0,66278.0,0.7029036]
[1729712261079,0.22677622,66292.0,66278.0,0.6929036]
[1729712261306,0.22677622,66292.0,66278.0,0.77408043]
[1729712262248,0.22677622,66292.0,66278.0,0.67288043]
[1729712262713,0.32617179,66291.0,66278.0,0.40638281]
[1729712262941,0.22677622,66292.0,66278.0,0.41638281]
[1729712263709,0.22677622,66292.0,66278.0,0.42638281]
[1729712263956,0.22677622,66292.0,66278.0,0.41638281]
[1729712264447,0.169855,66279.0,66278.0,0.005]
[1729712264679,0.169855,66279.0,66278.0,0.01]
[1729712265365,0.169855,66279.0,66278.0,0.0270881]
[1729712265596,0.169855,66279.0,66278.0,0.32247091]
[1729712265853,0.169855,66279.0,66278.0,0.32747091]
[1729712266091,0.169855,66279.0,66278.0,0.32847091]
[1729712266332,0.169855,66279.0,66278.0,0.32747091]
[1729712266790,0.169855,66279.0,66278.0,0.32847091]
[1729712267022,0.000855,66279.0,66278.0,0.32747091]
[1729712267998,0.000855,66279.0,66278.0,0.5027917]
[1729712268731,0.000855,66279.0,66278.0,0.32747091]
[1729712269209,0.000855,66279.0,66278.0,0.32847091]
[1729712271656,0.000355,66279.0,66278.0,0.32847091]
[1729712272617,0.000355,66279.0,66278.0,0.6087917]
[1729712272842,0.000355,66279.0,66278.0,0.43347091]
[1729712273337,0.000355,66279.0,66278.0,0.43247091]
[1729712273816,0.000355,66279.0,66278.0,0.43347091]
[1729712274548,0.000355,66279.0,66278.0,0.43818989]
[1729712274774,0.000355,66279.0,66278.0,0.61351068]
[1729712276404,0.000355,66279.0,66278.0,0.63651068]
[1729712276655,0.000355,66279.0,66278.0,0.64651068]
[1729712277911,0.000355,66279.0,66278.0,0.41710179]
[1729712278128,0.000355,66279.0,66278.0,0.42210179]
[1729712278615,0.000355,66279.0,66278.0,0.42110123]
[1729712278852,0.000355,66279.0,66278.0,0.41610179]
[1729712280557,0.000355,66279.0,66278.0,0.59642258]
[1729712281516,0.000355,66279.0,66278.0,0.42110179]
[1729712281746,0.000355,66279.0,66278.0,0.41610179]
[1729712284407,0.000355,66279.0,66278.0,0.26559798]
[1729712284666,0.167455,66279.0,66273.0,0.01]
[1729712284922,0.17532079,66274.0,66273.0,0.01]
[1729712285146,0.17532079,66274.0,66273.0,0.00971969]
[1729712285377,0.17532079,66274.0,66273.0,0.005]
[1729712285602,0.17532079,66274.0,66273.0,0.01]
[1729712285832,0.17532079,66274.0,66273.0,0.005]
[1729712286327,0.17532079,66274.0,66273.0,0.01]
[1729712287273,0.17532079,66274.0,66273.0,0.005]
[1729712287724,0.17532079,66274.0,66270.0,0.01]
[1729712287964,0.0762,66273.0,66269.0,0.005]
[1729712288237,0.17532079,66270.0,66269.0,0.01]
[1729712288483,0.17532079,66270.0,66265.0,0.40141081]
[1729712288484,0.17532079,66270.0,66265.0,0.01]
[1729712288731,0.17532079,66266.0,66265.0,0.01]
[1729712288981,0.17532079,66266.0,66265.0,0.005]
[1729712289226,0.17532079,66266.0,66264.0,0.005]
[1729712289533,0.17532079,66266.0,66264.0,0.01]
[1729712290175,0.17532079,66266.0,66264.0,0.17238105]
[1729712290661,0.17532079,66266.0,66264.0,0.01]
[1729712290912,0.17532079,66266.0,66265.0,0.150909]
[1729712291169,0.1557,66269.0,66265.0,0.01]
[1729712291419,0.1557,66269.0,66267.0,0.150904]
[1729712291675,0.0762,66273.0,66268.0,0.005]
[1729712291918,0.0762,66273.0,66270.0,0.150897]
[1729712292140,0.0762,66273.0,66270.0,0.1669867]
[1729712292639,0.0762,66273.0,66271.0,0.150894]
[1729712293601,0.1565,66276.0,66275.0,0.150886]
[1729712293849,0.1619,66284.0,66278.0,0.155879]
[1729712295045,0.17532079,66283.0,66276.0,0.150882]
[1729712295533,0.17532079,66283.0,66277.0,0.150881]
[1729712296079,0.17532079,66283.0,66278.0,0.155879]
[1729712296571,0.17532079,66283.0,66278.0,0.005]
[1729712296769,0.32618879,66283.0,66278.0,0.005]
[1729712297216,0.15087,66282.0,66278.0,0.005]
[1729712297430,0.17567579,66279.0,66278.0,0.005]
[1729712298091,0.17567579,66279.0,66274.0,0.005]
[1729712298319,0.17532079,66275.0,66272.0,0.01]
[1729712298994,0.17532079,66275.0,66274.0,0.005]
[1729712299428,0.17532079,66275.0,66274.0,0.051269]
[1729712300103,0.17567579,66279.0,66274.0,0.051269]
[1729712300323,0.17567579,66279.0,66274.0,0.202157]
[1729712300584,0.000355,66279.0,66274.0,0.202157]
[1729712300814,0.000355,66279.0,66275.0,0.0508945]
[1729712301284,0.000355,66279.0,66278.0,0.155879]
[1729712301505,0.000355,66279.0,66278.0,0.31138281]
[1729712301733,0.000355,66279.0,66278.0,0.41138281]
[1729712302427,0.000355,66279.0,66278.0,0.41610178]
[1729712302669,0.000355,66279.0,66278.0,0.47303944]
[1729712302906,0.000355,66279.0,66278.0,0.48275841]
[1729712303136,0.000355,66279.0,66278.0,0.6580792]
[1729712303359,0.000355,66279.0,66278.0,0.48275841]
[1729712303581,0.000355,66279.0,66278.0,0.4827578]
[1729712304771,0.000855,66296.0,66295.0,0.16084]
[1729712306142,0.000855,66296.0,66295.0,0.2117345]
[1729712306848,0.000855,66296.0,66295.0,0.5375591]
[1729712307120,0.000855,66296.0,66295.0,0.6375591]
[1729712309913,0.000855,66296.0,66295.0,0.41134381]
[1729712311131,0.000855,66296.0,66295.0,0.5866646]
[1729712314657,0.000855,66296.0,66295.0,0.6714646]
[1729712314953,0.000855,66296.0,66295.0,0.6664646]
[1729712315187,0.000855,66296.0,66295.0,0.6714646]
[1729712319144,0.000855,66296.0,66295.0,0.6614646]
[1729712319374,0.000855,66296.0,66295.0,0.5866646]
[1729712320107,0.000855,66296.0,66295.0,0.5916646]
[1729712320568,0.000855,66296.0,66295.0,0.5866646]
[1729712321763,0.000855,66296.0,66295.0,0.41134381]
[1729712322199,0.000855,66296.0,66295.0,0.26050381]
[1729712322439,0.000855,66296.0,66295.0,0.40634381]
[1729712322673,0.000855,66296.0,66295.0,0.26050381]
[1729712322905,0.000855,66296.0,66295.0,0.25550381]
[1729712323127,0.000855,66296.0,66295.0,0.41134381]
[1729712323596,0.000855,66296.0,66295.0,0.005]
[1729712323861,0.000855,66296.0,66295.0,0.105]
[1729712324088,0.000855,66296.0,66295.0,0.1]
[1729712324993,0.000855,66296.0,66295.0,0.15084]
[1729712325220,0.000855,66296.0,66294.0,0.01]
[1729712325464,0.22677622,66295.0,66292.0,0.005]
[1729712325683,0.22677622,66295.0,66287.0,0.01]
[1729712325684,0.17532079,66293.0,66287.0,0.01]